Service area,Service sub division,TVBC Service,Expense type,Detailed expense type,TVBC account code,Date Paid,Transaction Reference,Nett Value,Supplier Name
Cultural & Related,Recreation & Sport,Community and Leisure ,Third Party Payments,Private contractors,Secondary contract - non est,20/02/2014,118821,"1,175.00",24 Acoustics Ltd
Environmental & Regulatory,Street Cleansing (not chargeable to Highways),Environmental,Employees,Indirect Employee Expenses,Agency Staff - Waged Posts,27/02/2014,119358,495.85,365 Supply Ltd
Environmental & Regulatory,Waste management,Environmental,Employees,Indirect Employee Expenses,Agency Staff - Waged Posts,13/02/2014,118013,"1,370.28",365 Supply Ltd
Environmental & Regulatory,Waste management,Environmental,Employees,Indirect Employee Expenses,Agency Staff - Waged Posts,20/02/2014,119176,"2,553.90",365 Supply Ltd
Environmental & Regulatory,Waste management,Environmental,Employees,Indirect Employee Expenses,Agency Staff - Waged Posts,06/02/2014,117270,"2,557.88",365 Supply Ltd
Planning & Development,Economic Development,Estates and Economic Development ,Supplies & Services,"Printing, Stationery & General Office Expenses",Training Courses,27/02/2014,120229,"1,000.00",3fd Productdesigndevelopment
Environmental & Regulatory,"Cemetery, Cremation and Mortuary Services",Community and Leisure ,Supplies & Services,Miscellaneous Expenses,National Assist Act Burials,12/02/2014,118316,"1,774.00",Personal data - Data Protection Act 1998
Central Services to the Public,Management & Support Services,Estates and Economic Development ,Supplies & Services,"Equipment, Furniture & Materials",Purchase Materials (Job Cost),27/02/2014,120216,"1,875.00",A J Wilsons
Environmental & Regulatory,Waste management,Environmental,Employees,Indirect Employee Expenses,Agency Staff - Waged Posts,20/02/2014,119175,465.23,Abacus Employment Services Ltd
Environmental & Regulatory,Waste management,Environmental,Employees,Indirect Employee Expenses,Agency Staff - Waged Posts,20/02/2014,118348,740.4,Abacus Employment Services Ltd
Central Services to the Public,Management & Support Services,Estates and Economic Development ,Third Party Payments,Other Establishments,Private Contractors,27/02/2014,119983,"14,164.00",Acs Group Maintenance Ltd
Environmental & Regulatory,Community Safety,Community and Leisure ,Transport Related Expenditure,Direct Transport Costs,Repair Materials,06/02/2014,116663,430.89,Adams Morey Ltd
Central Services to the Public,Local Tax Collection,Revenues,Supplies & Services,Communications & Computing,Computer Software,19/02/2014,118378,200,Airey Consultancy Services Ltd
Central Services to the Public,Local Tax Collection,Revenues,Supplies & Services,Communications & Computing,Computer Software,19/02/2014,118378,200,Airey Consultancy Services Ltd
Housing Services,Housing Benefits ,Revenues,Supplies & Services,Communications & Computing,Computer Software,19/02/2014,118378,200,Airey Consultancy Services Ltd
Central Services to the Public,Local Tax Collection,Revenues,Supplies & Services,Communications & Computing,Computer Software,19/02/2014,118378,200,Airey Consultancy Services Ltd
Cultural & Related,Tourism,Estates and Economic Development ,Premises related Expenditure,Repairs Alterations & Maintenance of Buildings,Planned Maintenance - Non Est,27/02/2014,119676,470,Alarms & Electrical (Devizes) Ltd
Cultural & Related,Open Spaces,Community and Leisure ,Premises related Expenditure,Grounds Maintenance Costs,Gm - Additional Works,06/02/2014,117216,578,Personal data - Data Protection Act 1998
Cultural & Related,Open Spaces,Community and Leisure ,Premises related Expenditure,Grounds Maintenance Costs,Gm - Additional Works,27/02/2014,119995,600,Personal data - Data Protection Act 1998
Cultural & Related,Open Spaces,Community and Leisure ,Premises related Expenditure,Grounds Maintenance Costs,Gm - Additional Works,27/02/2014,119995,149,Personal data - Data Protection Act 1998
Cultural & Related,Open Spaces,Community and Leisure ,Premises related Expenditure,Grounds Maintenance Costs,Gm - Additional Works,20/02/2014,118039,"2,600.00",Personal data - Data Protection Act 1998
Environmental & Regulatory,Street Cleansing (not chargeable to Highways),Environmental,Supplies & Services,"Printing, Stationery & General Office Expenses",Training Courses,06/02/2014,116290,954,Allied Driving Schools Ltd
Central Services to the Public,Local Tax Collection,Revenues,Supplies & Services,Miscellaneous Expenses,All Pay Fees,06/02/2014,117706,"1,604.64",Allpay Limited
Central Services to the Public,Management & Support Services,Estates and Economic Development ,Third Party Payments,Other Establishments,Private Contractors,27/02/2014,120210,"2,820.00",Anchor Pipework Ltd
Environmental & Regulatory,Regulatory Services,Housing and Environmental Health ,Supplies & Services,Grants and subscriptions,Capital Grants,20/02/2014,118568,670,Andover Glass Works Ltd
Central Services to the Public,Management & Support Services,Estates and Economic Development ,Supplies & Services,"Equipment, Furniture & Materials",Purchase Materials (Job Cost),27/02/2014,119754,609.34,Andover Glass Works Ltd
Central Services to the Public,Management & Support Services,Estates and Economic Development ,Supplies & Services,"Equipment, Furniture & Materials",Purchase Materials (Job Cost),13/02/2014,117995,838.99,Andover Glass Works Ltd
"Highways, Roads & Transport",Public Transport,Plan Pol & Transport,Third Party Payments,Transport Operators in Respect of Concessionary Fares,Voluntary Orgs Reimbursement,27/02/2014,118941,"1,976.00",Andover Neighbourcare
"Highways, Roads & Transport",Public Transport,Plan Pol & Transport,Third Party Payments,Transport Operators in Respect of Concessionary Fares,Voluntary Orgs Reimbursement,13/02/2014,117507,"2,061.50",Andover Neighbourcare
Environmental & Regulatory,Regulatory Services,Housing and Environmental Health ,Supplies & Services,Miscellaneous Expenses,Kennel fees,13/02/2014,118539,834,Anton Vets Ltd
Cultural & Related,Culture & Heritage,Estates and Economic Development ,Premises related Expenditure,Repairs Alterations & Maintenance of Buildings,Planned Maintenance - Non Est,27/02/2014,119757,280,Aquacare
Central Services to the Public,Management & Support Services,Estates and Economic Development ,Premises related Expenditure,Repairs Alterations & Maintenance of Buildings,Planned Maintenance - Non Est,27/02/2014,119757,280,Aquacare
Cultural & Related,Recreation & Sport,Community and Leisure ,Premises related Expenditure,Repairs Alterations & Maintenance of Buildings,Planned Maintenance - Non Est,27/02/2014,119757,520,Aquacare
Cultural & Related,Recreation & Sport,Community and Leisure ,Premises related Expenditure,Repairs Alterations & Maintenance of Buildings,Planned Maintenance - Non Est,27/02/2014,119757,280,Aquacare
Cultural & Related,Recreation & Sport,Community and Leisure ,Premises related Expenditure,Repairs Alterations & Maintenance of Buildings,Planned Maintenance - Non Est,27/02/2014,119757,280,Aquacare
Cultural & Related,Recreation & Sport,Community and Leisure ,Premises related Expenditure,Repairs Alterations & Maintenance of Buildings,Planned Maintenance - Non Est,27/02/2014,119757,280,Aquacare
Cultural & Related,Recreation & Sport,Community and Leisure ,Premises related Expenditure,Repairs Alterations & Maintenance of Buildings,Planned Maintenance - Non Est,27/02/2014,119757,220,Aquacare
Central Services to the Public,Management & Support Services,Estates and Economic Development ,Supplies & Services,Communications & Computing,Software Maintenance,20/02/2014,119421,"1,208.00",Argus Software (Uk) Ltd
Cultural & Related,Culture & Heritage,Community and Leisure ,Supplies & Services,Miscellaneous Expenses,Booking Of Acts,20/02/2014,118839,"2,226.00",Artistes International Management
Cultural & Related,Culture & Heritage,Community and Leisure ,Supplies & Services,Miscellaneous Expenses,Booking Of Acts,27/02/2014,119714,"2,871.00",Artistes International Management
Central Services to the Public,Emergency Planning,Corporate & Democratic,Supplies & Services,Communications & Computing,Land Line Telephone Charges,20/02/2014,118910,445,Ast Connections Ltd
Housing Services,Homelessness,Housing and Environmental Health ,Premises related Expenditure,Repairs Alterations & Maintenance of Buildings,General Repairs,19/02/2014,119214,"2,283.35",Aster Communities
Environmental & Regulatory,Regulatory Services,Housing and Environmental Health ,Supplies & Services,Grants and subscriptions,Capital Grants,06/02/2014,117697,"3,143.40",Aster Property
Planning & Development,Economic Development,Estates and Economic Development ,Supplies & Services,"Printing, Stationery & General Office Expenses",Training Courses,20/02/2014,119210,"7,250.00",Astonish Email Ltd
Central Services to the Public,Management & Support Services,Estates and Economic Development ,Transport Related Expenditure,Direct Transport Costs,Tyres,20/02/2014,117992,255.52,Ats Euromaster Limited
Environmental & Regulatory,Regulatory Services,Housing and Environmental Health ,Transport Related Expenditure,Direct Transport Costs,Tyres,20/02/2014,117992,14.27,Ats Euromaster Limited
Environmental & Regulatory,Community Safety,Community and Leisure ,Transport Related Expenditure,Direct Transport Costs,Tyres,20/02/2014,117992,32.3,Ats Euromaster Limited
Cultural & Related,Open Spaces,Environmental,Transport Related Expenditure,Direct Transport Costs,Tyres,20/02/2014,117992,204.06,Ats Euromaster Limited
Environmental & Regulatory,Street Cleansing (not chargeable to Highways),Environmental,Transport Related Expenditure,Direct Transport Costs,Tyres,20/02/2014,117992,155.35,Ats Euromaster Limited
Environmental & Regulatory,Waste management,Environmental,Transport Related Expenditure,Direct Transport Costs,Tyres,20/02/2014,117992,"2,634.00",Ats Euromaster Limited
Environmental & Regulatory,Waste management,Environmental,Transport Related Expenditure,Direct Transport Costs,Tyres,20/02/2014,117992,325.85,Ats Euromaster Limited
Central Services to the Public,Management & Support Services,Environmental,Transport Related Expenditure,Direct Transport Costs,Tyres,20/02/2014,117992,59.94,Ats Euromaster Limited
Environmental & Regulatory,Regulatory Services,Housing and Environmental Health ,Supplies & Services,Grants and subscriptions,Capital Grants,05/02/2014,117553,"2,160.00",Personal data - Data Protection Act 1998
Cultural & Related,Culture & Heritage,Community and Leisure ,Third Party Payments,Private contractors,Main Contractor Costs,06/02/2014,116549,"4,061.97",Barcham Trees Plc
Central Services to the Public,Management & Support Services,Estates and Economic Development ,Third Party Payments,Other Establishments,Private Contractors,27/02/2014,120194,"12,000.00",Basingstoke Fire Protection Ltd
External Trading Accounts,Industrial Estates,Estates and Economic Development ,Supplies & Services,Miscellaneous Expenses,Waste Collection,27/02/2014,119753,481.8,Basingstoke Skip Hire & Sthrn Waste Mgt Ltd
Environmental & Regulatory,Regulatory Services,Housing and Environmental Health ,Supplies & Services,Grants and subscriptions,Capital Grants,27/02/2014,120253,904.93,Bentley Mobility Services
Central Services to the Public,Management & Support Services,IT,Supplies & Services,Services,Project Consultancy - Systems,27/02/2014,119665,"2,250.00",Blue Chip
Environmental & Regulatory,Street Cleansing (not chargeable to Highways),Environmental,Supplies & Services,Services,Insurance excess,05/02/2014,116667,500,Bodyshop24
Central Services to the Public,Management & Support Services,Environmental,Supplies & Services,Miscellaneous Expenses,Vehicle insurance claims,05/02/2014,116667,279.8,Bodyshop24
Cultural & Related,Culture & Heritage,Community and Leisure ,Supplies & Services,Miscellaneous Expenses,Booking Of Acts,06/02/2014,117514,"6,433.79",Bound & Gagged Comedy Ltd
Cultural & Related,Culture & Heritage,Community and Leisure ,Supplies & Services,Catering,Non-Contract Catering,27/02/2014,119716,594.37,Carlsberg Uk Ltd
Cultural & Related,Culture & Heritage,Community and Leisure ,Supplies & Services,Catering,Non-Contract Catering,06/02/2014,116599,704.32,Carlsberg Uk Ltd
Cultural & Related,Culture & Heritage,Community and Leisure ,Supplies & Services,Catering,Non-Contract Catering,06/02/2014,117264,"1,055.96",Carlsberg Uk Ltd
Central Services to the Public,Management & Support Services,Plan Pol & Transport,Premises related Expenditure,Repairs Alterations & Maintenance of Buildings,General Repairs,13/02/2014,117977,"3,791.36",Caroway Building & Civil Engineering
Central Services to the Public,Management & Support Services,Plan Pol & Transport,Premises related Expenditure,Repairs Alterations & Maintenance of Buildings,General Repairs,13/02/2014,117976,"15,903.31",Caroway Building & Civil Engineering
Cultural & Related,Culture & Heritage,Community and Leisure ,Supplies & Services,Miscellaneous Expenses,Booking Of Acts,27/02/2014,119168,"2,392.00",Chambers Management
Environmental & Regulatory,Regulatory Services,Housing and Environmental Health ,Supplies & Services,Services,Professional Fees,06/02/2014,117220,493.95,Chartered Inst. Of Environmental Health
Cultural & Related,Open Spaces,Community and Leisure ,Supplies & Services,"Equipment, Furniture & Materials",Purchase Equip + Materials,27/02/2014,120172,"3,400.00",Chilbolton Parish Council
Central Services to the Public,Management & Support Services,Estates and Economic Development ,Third Party Payments,Other Establishments,Private Contractors,20/02/2014,118918,866.74,Churches
Planning & Development,Community Development,Community and Leisure ,Supplies & Services,Grants & Subscriptions,Grants,05/02/2014,117545,"1,000.00",Circular Arts
"Highways, Roads & Transport",Highways and roads - maintenance,Plan Pol & Transport,Premises related Expenditure,Repairs Alterations & Maintenance of Buildings,General Repairs,06/02/2014,117260,"9,724.00",Clear Channel Uk Ltd
"Highways, Roads & Transport",Parking Services,Plan Pol & Transport,Premises related Expenditure,Repairs Alterations & Maintenance of Buildings,General Repairs,27/02/2014,118822,"2,573.85",Clearwater 2010 Ltd
External Trading Accounts,Industrial Estates,Estates and Economic Development ,Supplies & Services,Services,Professional Fees,27/02/2014,120203,440,Clouds Environmental Consultancy Ltd
Central Services to the Public,Management & Support Services,Finance,Employees,Indirect Employee Expenses,Agency Staff - Waged Posts,27/02/2014,119221,491.8,Cma Financial Recruitment Ltd
Central Services to the Public,Management & Support Services,Finance,Employees,Indirect Employee Expenses,Agency Staff - Waged Posts,06/02/2014,116838,737.7,Cma Financial Recruitment Ltd
Central Services to the Public,Management & Support Services,Estates and Economic Development ,Premises related Expenditure,Repairs Alterations & Maintenance of Buildings,Planned Maintenance - Non Est,27/02/2014,119681,672.83,Cofely Ltd
Central Services to the Public,Management & Support Services,Chief Executive's,Supplies & Services,Services,Professional Adv. - Employment,06/02/2014,117680,"1,000.00",Coffin Mew Llp
Environmental & Regulatory,Regulatory Services,Housing and Environmental Health ,Supplies & Services,Services,Legal Fees,27/02/2014,119378,"1,500.00",Cornerstone Barristers
Environmental & Regulatory,Waste management,Environmental,Supplies & Services,"Equipment, Furniture & Materials",Purchase Equip + Materials,06/02/2014,117219,828,Craemer Uk Ltd
Central Services to the Public,Management & Support Services,Estates and Economic Development ,Supplies & Services,Communications & Computing,Telephone Tracking System,27/02/2014,118557,12.5,Ctrack Uk Limited
Environmental & Regulatory,Regulatory Services,Estates and Economic Development ,Supplies & Services,Communications & Computing,Telephone Tracking System,27/02/2014,118557,5,Ctrack Uk Limited
Cultural & Related,Open Spaces,Environmental,Supplies & Services,Communications & Computing,Telephone Tracking System,27/02/2014,118557,195,Ctrack Uk Limited
Environmental & Regulatory,Street Cleansing (not chargeable to Highways),Environmental,Supplies & Services,Communications & Computing,Telephone Tracking System,27/02/2014,118557,143,Ctrack Uk Limited
Environmental & Regulatory,Waste management,Environmental,Supplies & Services,Communications & Computing,Telephone Tracking System,27/02/2014,118557,117,Ctrack Uk Limited
Environmental & Regulatory,Waste management,Environmental,Supplies & Services,Communications & Computing,Telephone Tracking System,27/02/2014,118557,13,Ctrack Uk Limited
Central Services to the Public,Management & Support Services,Environmental,Supplies & Services,Communications & Computing,Telephone Tracking System,27/02/2014,118557,19.5,Ctrack Uk Limited
Central Services to the Public,Management & Support Services,Estates and Economic Development ,Transport Related Expenditure,Direct Transport Costs,External Garages,06/02/2014,116532,46.15,Ctrack Uk Limited
Cultural & Related,Open Spaces,Environmental,Transport Related Expenditure,Direct Transport Costs,External Garages,06/02/2014,116532,323.05,Ctrack Uk Limited
Environmental & Regulatory,Street Cleansing (not chargeable to Highways),Environmental,Transport Related Expenditure,Direct Transport Costs,External Garages,06/02/2014,116532,461.58,Ctrack Uk Limited
Environmental & Regulatory,Waste management,Environmental,Transport Related Expenditure,Direct Transport Costs,External Garages,06/02/2014,116532,23.07,Ctrack Uk Limited
Central Services to the Public,Management & Support Services,Environmental,Transport Related Expenditure,Direct Transport Costs,External Garages,06/02/2014,116532,46.15,Ctrack Uk Limited
Central Services to the Public,Emergency Planning,Corporate & Democratic,Supplies & Services,"Equipment, Furniture & Materials",Purchase Materials (Job Cost),27/02/2014,119696,459.08,D Pritchett (Tipper) Hire & Aggregates
Cultural & Related,Open Spaces,Environmental,Supplies & Services,"Equipment, Furniture & Materials",Purchase Equip + Materials,27/02/2014,119371,499,D Pritchett (Tipper) Hire & Aggregates
Environmental & Regulatory,Waste management,Environmental,Supplies & Services,"Printing, Stationery & General Office Expenses",Leasing rentals,06/02/2014,117262,403.54,De Lage Landen Leasing Ltd
Cultural & Related,Open Spaces,Environmental,Supplies & Services,"Printing, Stationery & General Office Expenses",Leasing rentals,06/02/2014,117262,213,De Lage Landen Leasing Ltd
Central Services to the Public,Management & Support Services,IT,Supplies & Services,Communications & Computing,Computer Hardware,13/02/2014,118022,"8,671.00",Dell Computer Corporation Ltd
Central Services to the Public,Management & Support Services,IT,Support Services,IT,IT Hardware costs,13/02/2014,118547,"13,023.66",Dell Computer Corporation Ltd
Environmental & Regulatory,Waste management,Environmental,Transport Related Expenditure,Direct Transport Costs,Repair Materials,06/02/2014,116673,236.52,Dennis Eagle Ltd
Central Services to the Public,Management & Support Services,Environmental,Transport Related Expenditure,Direct Transport Costs,Repair Materials,06/02/2014,116673,217.37,Dennis Eagle Ltd
Environmental & Regulatory,Waste management,Environmental,Transport Related Expenditure,Direct Transport Costs,Repair Materials,06/02/2014,116662,321.21,Dennis Eagle Ltd
Central Services to the Public,Management & Support Services,Environmental,Transport Related Expenditure,Direct Transport Costs,Repair Materials,06/02/2014,116662,135.25,Dennis Eagle Ltd
Environmental & Regulatory,Waste management,Environmental,Transport Related Expenditure,Direct Transport Costs,Repair Materials,27/02/2014,118384,457.58,Dennis Eagle Ltd
Planning & Development,Economic Development,Estates and Economic Development ,Supplies & Services,Grants & Subscriptions,Grants,05/02/2014,117550,500,Dmac-It
Environmental & Regulatory,Waste management,Environmental,Transport Related Expenditure,Direct Transport Costs,Licences,20/02/2014,2117,652.5,Dvla Swansea
Central Services to the Public,Management & Support Services,Plan Pol & Transport,Premises related Expenditure,Repairs Alterations & Maintenance of Buildings,General Repairs,13/02/2014,118532,"34,827.57",Dyer And Butler Ltd
Central Services to the Public,Management & Support Services,Estates and Economic Development ,Supplies & Services,"Equipment, Furniture & Materials",Purchase Materials (Job Cost),27/02/2014,119974,"1,377.90",Edmundson Electrical Ltd
Central Services to the Public,Management & Support Services,Estates and Economic Development ,Third Party Payments,Other Establishments,Contract Catering,13/02/2014,117701,"1,918.40",Edwards And Ward Ltd
Central Services to the Public,Management & Support Services,Estates and Economic Development ,Third Party Payments,Other Establishments,Contract Catering,20/02/2014,118909,"2,551.85",Edwards And Ward Ltd
Cultural & Related,Open Spaces,Environmental,Transport Related Expenditure,Direct Transport Costs,Repair Materials,13/02/2014,117230,416.7,"Edwards Ford, Andover Ford"
Environmental & Regulatory,Waste management,Environmental,Supplies & Services,"Equipment, Furniture & Materials",Purchase Equip + Materials,06/02/2014,117678,693,Egbert H Taylor & Co Ltd
Cultural & Related,Open Spaces,Environmental,Supplies & Services,"Equipment, Furniture & Materials",Purchases for playgrounds,20/02/2014,119160,"7,750.00",Ej Services (Uk) Limited
Planning & Development,Community Development,Community and Leisure ,Supplies & Services,Grants & Subscriptions,Grants,27/02/2014,120180,500,Enham Alamein Parish Council
Central Services,Corporate & Democratic Core,Corporate & Democratic,Supplies & Services,Miscellaneous Expenses,External Audit Fees,13/02/2014,118007,"20,810.00",Ernst & Young Llp
Central Services to the Public,Management & Support Services,Estates and Economic Development ,Third Party Payments,Other Establishments,Private Contractors,13/02/2014,117987,"2,358.00",Faraday Fabrication And Welding Ltd
"Highways, Roads & Transport",Parking Services,Plan Pol & Transport,Premises related Expenditure,Repairs Alterations & Maintenance of Buildings,Car Park General Repairs,06/02/2014,117222,"2,755.14",Faraday Fabrication And Welding Ltd
Central Services to the Public,Management & Support Services,Housing and Environmental Health ,Supplies & Services,"Printing, Stationery & General Office Expenses",Training Courses,27/02/2014,119713,161.3,Fareham Borough Council
Planning & Development,Planning Policy,Plan Pol & Transport,Supplies & Services,"Printing, Stationery & General Office Expenses",Training Courses,27/02/2014,119713,322.6,Fareham Borough Council
Environmental & Regulatory,Waste management,Environmental,Supplies & Services,Miscellaneous Expenses,Recycling Bank Emptying,20/02/2014,118851,"7,114.51",Fcc Recycling (Uk) Ltd
Central Services to the Public,Management & Support Services,Environmental,Transport Related Expenditure,Direct Transport Costs,Oils,20/02/2014,117999,526.85,Fuchs Lubricants (Uk) Plc
Central Services to the Public,Management & Support Services,Environmental,Transport Related Expenditure,Direct Transport Costs,Oils,13/02/2014,117269,"1,928.40",Fuchs Lubricants (Uk) Plc
"Highways, Roads & Transport",Parking Services,Plan Pol & Transport,Supplies & Services,Services,Professional Fees,27/02/2014,118942,"2,773.91",G4s Cash Services (Uk) Ltd
"Highways, Roads & Transport",Parking Services,Plan Pol & Transport,Supplies & Services,Services,Professional Fees,27/02/2014,119179,"4,943.35",G4s Cash Services (Uk) Ltd
Cultural & Related,Open Spaces,Environmental,Supplies & Services,"Equipment, Furniture & Materials",Purchases for playgrounds,27/02/2014,119390,660,Gb Sport & Leisure Uk Ltd
Central Services to the Public,Management & Support Services,Estates and Economic Development ,Supplies & Services,"Equipment, Furniture & Materials",Purchase Materials (Job Cost),27/02/2014,119721,578.98,Glasdon Uk Ltd
Cultural & Related,Recreation & Sport,Community and Leisure ,Third Party Payments,Private contractors,Main Contractor Costs,27/02/2014,119750,"34,984.00",Hags-Smp Ltd **Use 8213**
Planning & Development,Community Development,Community and Leisure ,Supplies & Services,Grants & Subscriptions,Grants,05/02/2014,117552,"2,000.00",Hampshire Arts & Crafts
"Highways, Roads & Transport",Parking Services,Plan Pol & Transport,Premises related Expenditure,Energy Costs,Electricity,27/02/2014,118901,"-5,973.19",Hampshire County Council
Planning & Development,Planning Policy,Plan Pol & Transport,Supplies & Services,Grants & Subscriptions,Grants,20/02/2014,119405,"1,513.11",Hampshire County Council
Central Services to the Public,Local Land Charges,Legal & Democratic,Supplies & Services,Miscellaneous Expenses,Land Charges Fees,20/02/2014,118933,"3,357.00",Hampshire County Council
Central Services to the Public,Local Land Charges,Legal & Democratic,Supplies & Services,Miscellaneous Expenses,Land Charges Fees,13/02/2014,118379,"3,879.20",Hampshire County Council
Cultural & Related,Culture & Heritage,Community and Leisure ,Premises related Expenditure,Energy Costs,Electricity,27/02/2014,120184,166.08,Hampshire County Council
"Highways, Roads & Transport",Parking Services,Plan Pol & Transport,Premises related Expenditure,Energy Costs,Electricity,27/02/2014,120184,"4,998.00",Hampshire County Council
Cultural & Related,Open Spaces,Environmental,Premises related Expenditure,Energy Costs,Electricity,27/02/2014,120184,96.23,Hampshire County Council
"Highways, Roads & Transport",Parking Services,Plan Pol & Transport,Premises related Expenditure,Energy Costs,Electricity,27/02/2014,119424,"5,973.19",Hampshire County Council
Central Services to the Public,Management & Support Services,Chief Executive's,Third Party Payments,Other Local Authorities,Shared Service Contract Costs,27/02/2014,119664,"31,171.03",Hampshire County Council
Central Services to the Public,Management & Support Services,Community and Leisure ,Supplies & Services,Grants & Subscriptions,Grants,27/02/2014,119703,"4,488.00",Hampshire Credit Union Ltd
Planning & Development,Development Control,Planning & Building,Supplies & Services,Miscellaneous Expenses,Advertising,06/02/2014,117229,454.8,Hampshire Media Limited
"Highways, Roads & Transport",Highways and roads - maintenance,Plan Pol & Transport,Supplies & Services,Miscellaneous Expenses,Advertising,13/02/2014,117225,468.7,Hampshire Media Limited
Cultural & Related,Culture & Heritage,Community and Leisure ,Supplies & Services,Miscellaneous Expenses,Promotions / Special Events,06/02/2014,114756,665,Hampshire Media Limited
Environmental & Regulatory,Regulatory Services,Housing and Environmental Health ,Supplies & Services,Grants and subscriptions,Capital Grants,20/02/2014,119419,"1,485.00",Hampshire Mobility Services
Central Services,Corporate & Democratic Core,Corporate & Democratic,Supplies & Services,Services,Professional Fees,13/02/2014,118350,"1,350.00",Hampshire Pension Fund
Central Services to the Public,Management & Support Services,Estates and Economic Development ,Supplies & Services,"Equipment, Furniture & Materials",Purchase Equip + Materials,20/02/2014,118895,531.95,Harrison Flagpoles
Cultural & Related,Open Spaces,Environmental,Supplies & Services,"Printing, Stationery & General Office Expenses",Training Courses,27/02/2014,119394,847,Harrow Way Community School
Environmental & Regulatory,Street Cleansing (not chargeable to Highways),Environmental,Supplies & Services,"Printing, Stationery & General Office Expenses",Training Courses,27/02/2014,119394,364,Harrow Way Community School
Environmental & Regulatory,Waste management,Environmental,Supplies & Services,"Printing, Stationery & General Office Expenses",Training Courses,27/02/2014,119394,229,Harrow Way Community School
Environmental & Regulatory,Street Cleansing (not chargeable to Highways),Environmental,Transport Related Expenditure,Direct Transport Costs,Vehicles and Plant,27/02/2014,118873,"33,890.15",Haynes Of Maidstone T/A Haynes Ford
Environmental & Regulatory,Waste management,Environmental,Transport Related Expenditure,Direct Transport Costs,Vehicles and Plant,27/02/2014,118874,"35,872.65",Haynes Of Maidstone T/A Haynes Ford
Environmental & Regulatory,Street Cleansing (not chargeable to Highways),Environmental,Transport Related Expenditure,Direct Transport Costs,Licences,27/02/2014,118873,220,Haynes Of Maidstone T/A Haynes Ford
Environmental & Regulatory,Waste management,Environmental,Transport Related Expenditure,Direct Transport Costs,Licences,27/02/2014,118874,220,Haynes Of Maidstone T/A Haynes Ford
Cultural & Related,Open Spaces,Community and Leisure ,Premises related Expenditure,Grounds Maintenance Costs,Gm - Additional Works,20/02/2014,118536,497.06,Herriard Sawmills Ltd
Central Services to the Public,Local Tax Collection,Revenues,Supplies & Services,Services,Legal Fees,10/02/2014,131015,786,HM Courts Service
Cultural & Related,Open Spaces,Environmental,Supplies & Services,"Equipment, Furniture & Materials",Purchases for playgrounds,06/02/2014,116918,968,Huck Nets (Uk) Ltd
Central Services to the Public,Management & Support Services,IT,Supplies & Services,Services,Project Consultancy - Systems,06/02/2014,117237,500,Idox Software Ltd
"Highways, Roads & Transport",Parking Services,Plan Pol & Transport,Support Services,IT,IT software licences,13/02/2014,117525,"1,455.00",Imperial Civil Enforcement Solutions
Central Services to the Public,Management & Support Services,Estates and Economic Development ,Third Party Payments,Other Establishments,Private Contractors,27/02/2014,119689,"55,481.00",Industraheat
Central Services to the Public,Management & Support Services,Estates and Economic Development ,Supplies & Services,Communications & Computing,Software Maintenance,06/02/2014,117493,"1,950.00",Integrated Solutions Ltd
Cultural & Related,Culture & Heritage,Community and Leisure ,Supplies & Services,Miscellaneous Expenses,Booking Of Acts,13/02/2014,118006,500,Personal data - Data Protection Act 1998
Cultural & Related,Culture & Heritage,Community and Leisure ,Supplies & Services,Miscellaneous Expenses,Booking Of Acts,20/02/2014,119220,598,Jah Agency Ltd
Housing Services,Homelessness,Housing and Environmental Health ,Supplies & Services,Services,Project Consultancy - Policy,06/02/2014,117531,"3,985.40",Jenkins Duval Ltd
"Highways, Roads & Transport",Highways and roads - maintenance,Plan Pol & Transport,Supplies & Services,"Printing, Stationery & General Office Expenses",Training Courses,20/02/2014,118345,530,Johnson Associates Consultancy Ltd
Central Services to the Public,Management & Support Services,Environmental,Transport Related Expenditure,Direct Transport Costs,Repair Materials,27/02/2014,118831,483.19,Johnston Sweepers Ltd
Planning & Development,Community Development,Community and Leisure ,Supplies & Services,Grants & Subscriptions,Grants,05/02/2014,117551,"1,000.00",Jubilee Sailing Trust
Planning & Development,Planning Policy,Plan Pol & Transport,Supplies & Services,Services,Project Consultancy - Policy,13/02/2014,117495,"12,530.00",Justin Gardner Consulting
Planning & Development,Economic Development,Estates and Economic Development ,Supplies & Services,Grants & Subscriptions,Grants,12/02/2014,118315,500,Personal data - Data Protection Act 1998
Central Services to the Public,Management & Support Services,Estates and Economic Development ,Third Party Payments,Private contractors,Main Contractor Costs,20/02/2014,118843,"4,831.31",Kier Facilities Services Ltd
Planning & Development,Economic Development,Estates and Economic Development ,Premises related Expenditure,Grounds Maintenance Costs,Landscape Improvements,06/02/2014,117700,"1,650.00",Kieron Beattie Landscaping Ltd
Central Services to the Public,Management & Support Services,Plan Pol & Transport,Premises related Expenditure,Grounds Maintenance Costs,Landscape Improvements,06/02/2014,117699,"2,330.00",Kieron Beattie Landscaping Ltd
Environmental & Regulatory,Regulatory Services,Housing and Environmental Health ,Supplies & Services,"Equipment, Furniture & Materials",Purchase Equip + Materials,13/02/2014,117239,645.74,Killgerm Chemicals Ltd
Planning & Development,Community Development,Community and Leisure ,Supplies & Services,Grants & Subscriptions,Grants,05/02/2014,117546,"1,067.00",Knightwood Youth Club
Central Services to the Public,Management & Support Services,Estates and Economic Development ,Premises related Expenditure,Repairs Alterations & Maintenance of Buildings,Estates Capital AMP,13/02/2014,116623,"15,000.00",Kompan Ltd
Central Services to the Public,Management & Support Services,Estates and Economic Development ,Third Party Payments,Private contractors,Main Contractor Costs,06/02/2014,116624,"17,327.05",Kompan Ltd
Central Services to the Public,Management & Support Services,Estates and Economic Development ,Third Party Payments,Private contractors,Main Contractor Costs,06/02/2014,116625,"22,088.71",Kompan Ltd
Environmental & Regulatory,Regulatory Services,Housing and Environmental Health ,Supplies & Services,Grants and subscriptions,Capital Grants,26/02/2014,120021,"3,133.84",Lifestyle Solutions
Central Services to the Public,Management & Support Services,Estates and Economic Development ,Transport Related Expenditure,Direct Transport Costs,Repair Materials,06/02/2014,116815,21.4,M D Services
Environmental & Regulatory,Regulatory Services,Estates and Economic Development ,Transport Related Expenditure,Direct Transport Costs,Repair Materials,06/02/2014,116815,8.56,M D Services
Environmental & Regulatory,Regulatory Services,Housing and Environmental Health ,Transport Related Expenditure,Direct Transport Costs,Repair Materials,06/02/2014,116815,8.56,M D Services
Environmental & Regulatory,Regulatory Services,Housing and Environmental Health ,Transport Related Expenditure,Direct Transport Costs,Repair Materials,06/02/2014,116815,8.56,M D Services
Environmental & Regulatory,Community Safety,Community and Leisure ,Transport Related Expenditure,Direct Transport Costs,Repair Materials,06/02/2014,116815,8.56,M D Services
"Highways, Roads & Transport",Parking Services,Plan Pol & Transport,Transport Related Expenditure,Direct Transport Costs,Repair Materials,06/02/2014,116815,8.56,M D Services
Cultural & Related,Open Spaces,Environmental,Transport Related Expenditure,Direct Transport Costs,Repair Materials,06/02/2014,116815,166.92,M D Services
Environmental & Regulatory,Street Cleansing (not chargeable to Highways),Environmental,Transport Related Expenditure,Direct Transport Costs,Repair Materials,06/02/2014,116815,98.44,M D Services
Environmental & Regulatory,Waste management,Environmental,Transport Related Expenditure,Direct Transport Costs,Repair Materials,06/02/2014,116815,72.76,M D Services
Environmental & Regulatory,Waste management,Environmental,Transport Related Expenditure,Direct Transport Costs,Repair Materials,06/02/2014,116815,12.84,M D Services
Central Services to the Public,Management & Support Services,Environmental,Transport Related Expenditure,Direct Transport Costs,Repair Materials,06/02/2014,116815,12.84,M D Services
Cultural & Related,Open Spaces,Environmental,Supplies & Services,"Equipment, Furniture & Materials",Purchase Equip + Materials,27/02/2014,120183,435,Mainland Aggregates Ltd
Central Services to the Public,Management & Support Services,Environmental,Supplies & Services,"Equipment, Furniture & Materials",Maintenance Equip + Materials,13/02/2014,117178,723.5,Mb Garage Equipment
Planning & Development,Planning Policy,Plan Pol & Transport,Supplies & Services,Services,Legal Fees,05/02/2014,117547,"7,900.00",Cornerstone Barristers
Central Services to the Public,Non-Distributed Costs,Corporate & Democratic,Supplies & Services,Miscellaneous Expenses,Other Miscellaneous Costs,06/02/2014,117682,"45,534.00",Municipal Mutual Insurance Ltd
Central Services to the Public,Management & Support Services,Finance,Supplies & Services,"Equipment, Furniture & Materials",Equipment Lease Rentals,06/02/2014,117181,466.08,Neopost Finance Ltd
Central Services to the Public,Management & Support Services,Finance,Supplies & Services,"Printing, Stationery & General Office Expenses",Postage Costs,06/02/2014,115966,"1,721.76",Neopost Ltd
Central Services to the Public,Management & Support Services,IT,Supplies & Services,Communications & Computing,Computer Hardware,27/02/2014,119682,"4,212.87",Neptune Consulting
Central Services to the Public,Management & Support Services,IT,Supplies & Services,Communications & Computing,Hardware Maintenance,27/02/2014,119682,246.93,Neptune Consulting
Cultural & Related,Culture & Heritage,Community and Leisure ,Supplies & Services,"Equipment, Furniture & Materials",Purchase Equip + Materials,13/02/2014,118349,"3,750.00",Personal data - Data Protection Act 1998
Central Services to the Public,Management & Support Services,Chief Executive's,Supplies & Services,Communications & Computing,Software Maintenance,13/02/2014,118030,"2,773.60",Northgate Information Solutions Uk Ltd
Housing Services,Housing Benefits ,Revenues,Supplies & Services,Communications & Computing,Software Maintenance,13/02/2014,118029,718.67,Northgate Information Solutions Uk Ltd
Housing Services,Housing Benefits ,Revenues,Supplies & Services,Communications & Computing,Software Maintenance,13/02/2014,118026,"1,631.40",Northgate Information Solutions Uk Ltd
Central Services to the Public,Local Tax Collection,Revenues,Supplies & Services,Communications & Computing,Software Maintenance,13/02/2014,118026,"1,631.40",Northgate Information Solutions Uk Ltd
Housing Services,Housing Benefits ,Revenues,Supplies & Services,Communications & Computing,Software Maintenance,27/02/2014,118028,"5,677.08",Northgate Information Solutions Uk Ltd
Central Services to the Public,Management & Support Services,IT,Supplies & Services,"Printing, Stationery & General Office Expenses",Training Courses,06/02/2014,117238,750,Nuage Communications Ltd
Central Services to the Public,Management & Support Services,Estates and Economic Development ,Third Party Payments,Other Establishments,Private Contractors,27/02/2014,120208,600,Nuserve Ltrd
Central Services to the Public,Management & Support Services,Estates and Economic Development ,Third Party Payments,Other Establishments,Private Contractors,27/02/2014,119723,"3,390.00",Oakleaf Surveying Ltd
"Highways, Roads & Transport",Parking Services,Plan Pol & Transport,Supplies & Services,"Printing, Stationery & General Office Expenses",External Printing,06/02/2014,117223,"1,008.00",Paperwork (Uk) Ltd
Central Services to the Public,Management & Support Services,Housing and Environmental Health ,Supplies & Services,Miscellaneous Expenses,Bed & Breakfast,05/02/2014,117544,784.56,Pearsons/Country Cousins Pm Ltd
Cultural & Related,Culture & Heritage,Community and Leisure ,Supplies & Services,Miscellaneous Expenses,Booking Of Acts,13/02/2014,117505,"3,032.38",Peter Brent Promotions
Cultural & Related,Recreation & Sport,Community and Leisure ,Premises related Expenditure,Grounds Maintenance Costs,Gm - Additional Works,13/02/2014,118017,"1,150.00",Polytan Sports Surfaces (Uk) Ltd
Central Services to the Public,Management & Support Services,Estates and Economic Development ,Third Party Payments,Other Establishments,Private Contractors,13/02/2014,116605,"14,074.25",Polytan Sports Surfaces (Uk) Ltd
Central Services to the Public,Management & Support Services,Chief Executive's,Supplies & Services,"Equipment, Furniture & Materials",Purchase Furniture,27/02/2014,120192,529.4,Posturite Limited
Environmental & Regulatory,Regulatory Services,Housing and Environmental Health ,Supplies & Services,Grants and subscriptions,Capital Grants,20/02/2014,119413,"4,116.85",Prism Medical Uk
Cultural & Related,Recreation & Sport,Community and Leisure ,Third Party Payments,Private contractors,Main Contractor Costs,13/02/2014,118293,"52,774.00",Proludic Ltd
"Highways, Roads & Transport",Highways and roads - maintenance,Plan Pol & Transport,Supplies & Services,"Equipment, Furniture & Materials",Purchase Equip + Materials,05/02/2014,115983,460.7,Pulsar Developments Ltd
Central Services to the Public,Management & Support Services,Plan Pol & Transport,Supplies & Services,"Equipment, Furniture & Materials",Purchase Equip + Materials,20/02/2014,117980,"1,690.00",Purbeck Civil Engineering Limited
Central Services to the Public,Management & Support Services,IT,Supplies & Services,Services,Project Consultancy - Systems,20/02/2014,116292,"2,375.00",Quadsys
Central Services to the Public,Emergency Planning,Corporate & Democratic,Supplies & Services,"Equipment, Furniture & Materials",Purchase Equip + Materials,27/02/2014,119688,852.3,Raymond Brown Minerals & Recycling Ltd
Central Services to the Public,Emergency Planning,Corporate & Democratic,Supplies & Services,"Equipment, Furniture & Materials",Purchase Equip + Materials,27/02/2014,119992,"1,657.50",Raymond Brown Minerals & Recycling Ltd
Central Services to the Public,Emergency Planning,Corporate & Democratic,Supplies & Services,"Equipment, Furniture & Materials",Purchase Equip + Materials,27/02/2014,119687,"1,666.00",Raymond Brown Minerals & Recycling Ltd
Planning & Development,Development Control,Planning & Building,Supplies & Services,Services,Project Consultancy - Policy,20/02/2014,119216,775.95,Reading Agricultural Consultants Ltd
Planning & Development,Development Control,Planning & Building,Supplies & Services,Services,Project Consultancy - Policy,27/02/2014,120171,795,Reading Agricultural Consultants Ltd
Central Services to the Public,Management & Support Services,Housing and Environmental Health ,Supplies & Services,"Printing, Stationery & General Office Expenses",Photocopying Costs,27/02/2014,118939,508.09,Ricoh Uk Ltd
Cultural & Related,Culture & Heritage,Community and Leisure ,Supplies & Services,"Printing, Stationery & General Office Expenses",Photocopying Costs,06/02/2014,117180,516.19,Ricoh Uk Ltd
Planning & Development,Planning Policy,Plan Pol & Transport,Supplies & Services,"Printing, Stationery & General Office Expenses",Photocopying Costs,13/02/2014,118386,771.34,Ricoh Uk Ltd
Central Services to the Public,Management & Support Services,Community and Leisure ,Supplies & Services,"Printing, Stationery & General Office Expenses",Photocopying Costs,06/02/2014,114060,"1,092.07",Ricoh Uk Ltd
Planning & Development,Development Control,Planning & Building,Supplies & Services,"Printing, Stationery & General Office Expenses",Photocopying Costs,06/02/2014,117679,"1,208.82",Ricoh Uk Ltd
Central Services to the Public,Management & Support Services,Estates and Economic Development ,Supplies & Services,Grants & Subscriptions,Subscriptions,13/02/2014,117714,"1,010.00",Rics
Central Services to the Public,Management & Support Services,Community and Leisure ,Employees,Indirect Employee Expenses,Temporary Staff,06/02/2014,117183,"17,795.00",Romsey Community School
"Highways, Roads & Transport",Public Transport,Plan Pol & Transport,Third Party Payments,Transport Operators in Respect of Concessionary Fares,Voluntary Orgs Reimbursement,06/02/2014,117691,"1,271.50",Romsey Good Neighbours
Planning & Development,Economic Development,Estates and Economic Development ,Supplies & Services,Grants & Subscriptions,Grants,26/02/2014,120018,500,Romsey Wood Burners
Planning & Development,Community Development,Community and Leisure ,Supplies & Services,Grants & Subscriptions,Grants,26/02/2014,120016,500,Romsey Youth Choir
Central Services to the Public,Local Tax Collection,Revenues,Supplies & Services,"Printing, Stationery & General Office Expenses",Postage Costs,27/02/2014,119178,17.16,Royal Mail
Central Services to the Public,Local Tax Collection,Revenues,Supplies & Services,"Printing, Stationery & General Office Expenses",Postage Costs,27/02/2014,119178,241.14,Royal Mail
Housing Services,Housing Benefits ,Revenues,Supplies & Services,"Printing, Stationery & General Office Expenses",Postage Costs,27/02/2014,119178,138.08,Royal Mail
Central Services to the Public,Local Tax Collection,Revenues,Supplies & Services,"Printing, Stationery & General Office Expenses",Seminars,27/02/2014,119178,138.09,Royal Mail
Environmental & Regulatory,Waste management,Environmental,Supplies & Services,"Printing, Stationery & General Office Expenses",Postage Costs,27/02/2014,119178,"4,191.95",Royal Mail
Central Services to the Public,Emergency Planning,Corporate & Democratic,Supplies & Services,"Equipment, Furniture & Materials",Purchase Equip + Materials,27/02/2014,119672,"1,374.90",S G Baker Ltd
Central Services to the Public,Emergency Planning,Corporate & Democratic,Supplies & Services,"Equipment, Furniture & Materials",Purchase Equip + Materials,27/02/2014,119670,"1,407.40",S G Baker Ltd
Central Services to the Public,Emergency Planning,Corporate & Democratic,Supplies & Services,"Equipment, Furniture & Materials",Purchase Equip + Materials,27/02/2014,119673,"2,022.40",S G Baker Ltd
Central Services to the Public,Emergency Planning,Corporate & Democratic,Supplies & Services,"Equipment, Furniture & Materials",Purchase Equip + Materials,27/02/2014,119671,"2,749.80",S G Baker Ltd
Central Services to the Public,Emergency Planning,Corporate & Democratic,Supplies & Services,"Equipment, Furniture & Materials",Purchase Equip + Materials,27/02/2014,119674,"4,500.00",S G Baker Ltd
Central Services to the Public,Emergency Planning,Corporate & Democratic,Supplies & Services,"Equipment, Furniture & Materials",Purchase Equip + Materials,27/02/2014,119675,"6,109.80",S G Baker Ltd
Cultural & Related,Culture & Heritage,Community and Leisure ,Supplies & Services,Miscellaneous Expenses,Design Fees,06/02/2014,116674,500,Sculpture Works Ltd
Planning & Development,Community Development,Community and Leisure ,Supplies & Services,Grants & Subscriptions,Grants,05/02/2014,117548,"1,000.00",Sebastians Action Trust
Central Services to the Public,Management & Support Services,Finance,Supplies & Services,Services,Project Consultancy - Policy,20/02/2014,117541,"3,250.00",Sector Treasury Services Ltd
Environmental & Regulatory,Street Cleansing (not chargeable to Highways),Environmental,Supplies & Services,"Printing, Stationery & General Office Expenses",Leasing rentals,13/02/2014,118380,"1,935.00",Sg Equipment Finance Ltd
Cultural & Related,Open Spaces,Environmental,Supplies & Services,"Printing, Stationery & General Office Expenses",Leasing rentals,27/02/2014,119377,"12,984.49",Sg Equipment Finance Ltd
Planning & Development,Economic Development,Estates and Economic Development ,Supplies & Services,"Printing, Stationery & General Office Expenses",Training Courses,13/02/2014,118518,"2,500.00",Shenton Business Group
Cultural & Related,Open Spaces,Environmental,Supplies & Services,"Printing, Stationery & General Office Expenses",Leasing rentals,13/02/2014,117253,"42,684.15",Siemens Financial Services Ltd
Cultural & Related,Culture & Heritage,Community and Leisure ,Supplies & Services,Miscellaneous Expenses,Booking Of Acts,13/02/2014,118003,600,Snail Tales
Cultural & Related,Culture & Heritage,Community and Leisure ,Supplies & Services,"Equipment, Furniture & Materials",Purchase Equip + Materials,12/02/2014,117539,"1,435.00",Southern Neon Light Ltd
Environmental & Regulatory,Waste management,Environmental,Supplies & Services,"Equipment, Furniture & Materials",Equipment Hire,20/02/2014,118535,633,Southern Tower Services Ltd
External Trading Accounts,Industrial Estates,Estates and Economic Development ,Premises related Expenditure,Water Services,Water And Sewerage Charges,20/02/2014,118915,831.24,Southern Water
External Trading Accounts,Industrial Estates,Estates and Economic Development ,Premises related Expenditure,Water Services,Water And Sewerage Charges,20/02/2014,118914,"1,338.44",Southern Water
Cultural & Related,Open Spaces,Environmental,Transport Related Expenditure,Direct Transport Costs,Repair Materials,06/02/2014,116255,689.91,Spaldings (Uk) Limited
Cultural & Related,Open Spaces,Environmental,Transport Related Expenditure,Direct Transport Costs,Repair Materials,20/02/2014,117520,862.5,Spaldings (Uk) Limited
Cultural & Related,Open Spaces,Environmental,Transport Related Expenditure,Direct Transport Costs,Repair Materials,27/02/2014,118364,"1,196.60",Spaldings (Uk) Limited
Cultural & Related,Culture & Heritage,Community and Leisure ,Premises related Expenditure,Energy Costs,Electricity,27/02/2014,119172,"1,408.66",Sparsholt College Hampshire
Cultural & Related,Culture & Heritage,Community and Leisure ,Premises related Expenditure,Energy Costs,Gas,27/02/2014,119172,"1,760.89",Sparsholt College Hampshire
Cultural & Related,Culture & Heritage,Community and Leisure ,Premises related Expenditure,Water Services,Water And Sewerage Charges,27/02/2014,119172,254.34,Sparsholt College Hampshire
Environmental & Regulatory,Regulatory Services,Housing and Environmental Health ,Supplies & Services,Grants and subscriptions,Capital Grants,06/02/2014,117696,"2,805.01",Spc Bathrooms & Kitchens
External Trading Accounts,Industrial Estates,Estates and Economic Development ,Supplies & Services,Miscellaneous Expenses,Security Services,20/02/2014,119418,585.37,Sse
Environmental & Regulatory,Community Safety,Housing and Environmental Health ,Support Services,IT,Equipment,27/02/2014,119725,510.87,Sse Contracting Ltd
Environmental & Regulatory,Waste management,Environmental,Supplies & Services,"Equipment, Furniture & Materials",Purchase Equip + Materials,27/02/2014,118342,"25,267.20",Ssi Schaefer Ltd
Cultural & Related,Open Spaces,Environmental,Transport Related Expenditure,Direct Transport Costs,External Garages,06/02/2014,115952,30,Steele Signs
Cultural & Related,Open Spaces,Environmental,Transport Related Expenditure,Direct Transport Costs,Repair Materials,06/02/2014,115952,75,Steele Signs
Environmental & Regulatory,Street Cleansing (not chargeable to Highways),Environmental,Transport Related Expenditure,Direct Transport Costs,External Garages,06/02/2014,115952,195,Steele Signs
Environmental & Regulatory,Street Cleansing (not chargeable to Highways),Environmental,Transport Related Expenditure,Direct Transport Costs,Repair Materials,06/02/2014,115952,75,Steele Signs
Environmental & Regulatory,Waste management,Environmental,Transport Related Expenditure,Direct Transport Costs,Repair Materials,06/02/2014,115952,125,Steele Signs
Central Services to the Public,Management & Support Services,Environmental,Transport Related Expenditure,Direct Transport Costs,Repair Materials,06/02/2014,115952,25,Steele Signs
Planning & Development,Economic Development,Estates and Economic Development ,Premises related Expenditure,Grounds Maintenance Costs,Landscape Improvements,06/02/2014,117227,"6,180.00",Street Design Limited
Central Services to the Public,Management & Support Services,Estates and Economic Development ,Third Party Payments,Other Establishments,Private Contractors,27/02/2014,119981,"3,135.00",Studio Four Architects Ltd
Planning & Development,Planning Policy,Plan Pol & Transport,Supplies & Services,"Printing, Stationery & General Office Expenses",Stationery,06/02/2014,117203,194.03,Supplies Team Ltd
"Highways, Roads & Transport",Highways and roads - maintenance,Plan Pol & Transport,Supplies & Services,"Printing, Stationery & General Office Expenses",Stationery,06/02/2014,117203,84.96,Supplies Team Ltd
"Highways, Roads & Transport",Parking Services,Plan Pol & Transport,Supplies & Services,"Printing, Stationery & General Office Expenses",Stationery,06/02/2014,117203,219.21,Supplies Team Ltd
Central Services to the Public,Management & Support Services,IT,Supplies & Services,"Printing, Stationery & General Office Expenses",Stationery,20/02/2014,117202,525.43,Supplies Team Ltd
Planning & Development,Development Control,Planning & Building,Supplies & Services,"Printing, Stationery & General Office Expenses",Stationery,13/02/2014,117266,558.61,Supplies Team Ltd
Planning & Development,Development Control,Planning & Building,Supplies & Services,"Printing, Stationery & General Office Expenses",Print Consumables,13/02/2014,117266,176.03,Supplies Team Ltd
Cultural & Related,Recreation & Sport,Community and Leisure ,Premises related Expenditure,Grounds Maintenance Costs,Gm - Additional Works,06/02/2014,117205,225,Supplies Team Ltd
Central Services to the Public,Management & Support Services,Community and Leisure ,Supplies & Services,"Printing, Stationery & General Office Expenses",Stationery,06/02/2014,117205,542.71,Supplies Team Ltd
Cultural & Related,Recreation & Sport,Community and Leisure ,Supplies & Services,"Equipment, Furniture & Materials",Purchase Equip + Materials,20/02/2014,117267,"1,511.69",Sutcliffe Play Ltd
Cultural & Related,Open Spaces,Environmental,Transport Related Expenditure,Direct Transport Costs,Repair Materials,13/02/2014,117276,467.18,T H White Ltd
Cultural & Related,Open Spaces,Environmental,Transport Related Expenditure,Direct Transport Costs,Repair Materials,06/02/2014,111208,545,T H White Ltd
Environmental & Regulatory,Waste management,Environmental,Transport Related Expenditure,Direct Transport Costs,Repair Materials,27/02/2014,118548,-636.12,Terberg Matec Uk Limited
Environmental & Regulatory,Waste management,Environmental,Transport Related Expenditure,Direct Transport Costs,Repair Materials,27/02/2014,118021,866.14,Terberg Matec Uk Limited
Environmental & Regulatory,Waste management,Environmental,Transport Related Expenditure,Direct Transport Costs,Repair Materials,13/02/2014,117268,957.4,Terberg Matec Uk Limited
Environmental & Regulatory,Waste management,Environmental,Transport Related Expenditure,Direct Transport Costs,Repair Materials,20/02/2014,117703,"3,368.71",Terberg Matec Uk Limited
Planning & Development,Planning Policy,Plan Pol & Transport,Supplies & Services,Grants & Subscriptions,Grants,19/02/2014,119181,"14,830.00",Test Valley Community Services
Central Services to the Public,Management & Support Services,Estates and Economic Development ,Supplies & Services,"Printing, Stationery & General Office Expenses",Training Courses,26/02/2014,119731,920,"The Accountant, College Of Estate Management"
Cultural & Related,Tourism,Estates and Economic Development ,Supplies & Services,Miscellaneous Expenses,Design Fees,20/02/2014,116811,"3,824.25",The Marketing Collective Ltd
Central Services to the Public,Management & Support Services,Estates and Economic Development ,Premises related Expenditure,Repairs Alterations & Maintenance of Buildings,Estates Capital AMP,19/02/2014,119182,"4,230.00",The Picture Conservation & Restoration Studio
Planning & Development,Economic Development,Estates and Economic Development ,Supplies & Services,Grants & Subscriptions,Contributions,20/02/2014,118925,750,The University Of Southampton Science Park Lt
Central Services to the Public,Management & Support Services,Finance,Supplies & Services,"Printing, Stationery & General Office Expenses",Postage Costs,20/02/2014,118544,688.64,Tnt Post South West Ltd
Central Services to the Public,Management & Support Services,Finance,Supplies & Services,"Printing, Stationery & General Office Expenses",Postage Costs,20/02/2014,117261,"1,178.12",Tnt Post South West Ltd
Central Services to the Public,Management & Support Services,Finance,Supplies & Services,"Printing, Stationery & General Office Expenses",Postage Costs,20/02/2014,119173,"1,189.33",Tnt Post South West Ltd
Central Services to the Public,Management & Support Services,Finance,Supplies & Services,"Printing, Stationery & General Office Expenses",Postage Costs,06/02/2014,116597,"1,197.28",Tnt Post South West Ltd
Central Services to the Public,Management & Support Services,Finance,Supplies & Services,"Printing, Stationery & General Office Expenses",Postage Costs,06/02/2014,116242,"1,265.76",Tnt Post South West Ltd
External Trading Accounts,Industrial Estates,Estates and Economic Development ,Premises related Expenditure,Energy Costs,Gas,27/02/2014,119735,531.26,Total Gas & Power Ltd
Cultural & Related,Culture & Heritage,Estates and Economic Development ,Premises related Expenditure,Energy Costs,Gas,27/02/2014,119727,535.38,Total Gas & Power Ltd
Cultural & Related,Culture & Heritage,Estates and Economic Development ,Premises related Expenditure,Energy Costs,Gas,27/02/2014,119726,682.25,Total Gas & Power Ltd
Central Services to the Public,Management & Support Services,Estates and Economic Development ,Premises related Expenditure,Energy Costs,Gas,27/02/2014,119737,900.26,Total Gas & Power Ltd
Central Services to the Public,Management & Support Services,Estates and Economic Development ,Premises related Expenditure,Energy Costs,Gas,27/02/2014,119729,956.49,Total Gas & Power Ltd
Cultural & Related,Open Spaces,Environmental,Premises related Expenditure,Energy Costs,Gas,27/02/2014,119690,"1,143.32",Total Gas & Power Ltd
Cultural & Related,Open Spaces,Environmental,Premises related Expenditure,Energy Costs,Gas,27/02/2014,119692,"1,383.97",Total Gas & Power Ltd
Central Services to the Public,Management & Support Services,Estates and Economic Development ,Premises related Expenditure,Energy Costs,Gas,27/02/2014,119724,"3,291.91",Total Gas & Power Ltd
Central Services to the Public,Management & Support Services,Estates and Economic Development ,Supplies & Services,"Equipment, Furniture & Materials",Purchase Materials (Job Cost),20/02/2014,118917,505.7,Travis Perkins Trading Co Ltd
Central Services to the Public,Management & Support Services,Estates and Economic Development ,Supplies & Services,"Equipment, Furniture & Materials",Purchase Materials (Job Cost),27/02/2014,119985,584.2,Travis Perkins Trading Co Ltd
Planning & Development,Development Control,Planning & Building,Supplies & Services,"Printing, Stationery & General Office Expenses",Training Courses,13/02/2014,117532,"1,950.00",Trevor Roberts Associates
Environmental & Regulatory,Waste management,Environmental,Supplies & Services,"Printing, Stationery & General Office Expenses",Leasing rentals,06/02/2014,117527,"5,515.00",Unilink Finance Ltd
Central Services to the Public,Management & Support Services,Estates and Economic Development ,Supplies & Services,"Printing, Stationery & General Office Expenses",Training Courses,27/02/2014,119718,970,University Of Portsmouth
Cultural & Related,Recreation & Sport,Community and Leisure ,Employees,Direct Employee Expenses,Basic Salaries,13/02/2014,118004,"1,857.92",Valley Leisure Ltd
Cultural & Related,Recreation & Sport,Community and Leisure ,Employees,Direct Employee Expenses,Basic Salaries,06/02/2014,117498,"2,418.89",Valley Leisure Ltd
Cultural & Related,Recreation & Sport,Community and Leisure ,Third Party Payments,Other Establishments,ALC Management Contract-TVL,06/02/2014,117497,"35,000.00",Valley Leisure Ltd
Planning & Development,Development Control,Planning & Building,Supplies & Services,Services,Professional Fees,27/02/2014,118540,"2,000.00",Valuation Office Agency
Central Services to the Public,Management & Support Services,Revenues,Employees,Indirect Employee Expenses,Temporary Staff,13/02/2014,117978,765.63,Venn Group Ltd
Central Services to the Public,Management & Support Services,Revenues,Employees,Indirect Employee Expenses,Temporary Staff,27/02/2014,119728,777.88,Venn Group Ltd
Central Services to the Public,Management & Support Services,Revenues,Employees,Indirect Employee Expenses,Temporary Staff,27/02/2014,118827,814.87,Venn Group Ltd
Cultural & Related,Open Spaces,Environmental,Supplies & Services,Miscellaneous Expenses,Waste Collection,13/02/2014,117991,643.93,Veolia Es Hampshire Ltd
Central Services to the Public,Management & Support Services,IT,Supplies & Services,Communications & Computing,Computer Hardware,06/02/2014,116579,"1,156.80",Vodafone Business Services
Cultural & Related,Open Spaces,Environmental,Supplies & Services,Communications & Computing,Mobile Telephone Charges,13/02/2014,118295,201.05,Vodafone Limited
Environmental & Regulatory,Street Cleansing (not chargeable to Highways),Environmental,Supplies & Services,Communications & Computing,Mobile Telephone Charges,13/02/2014,118295,125.13,Vodafone Limited
Environmental & Regulatory,Waste management,Environmental,Supplies & Services,Communications & Computing,Mobile Telephone Charges,13/02/2014,118295,66.37,Vodafone Limited
Central Services to the Public,Management & Support Services,Environmental,Supplies & Services,Communications & Computing,Mobile Telephone Charges,13/02/2014,118295,11.09,Vodafone Limited
Central Services to the Public,Management & Support Services,Environmental,Supplies & Services,Communications & Computing,Mobile Telephone Charges,13/02/2014,118295,28.53,Vodafone Limited
Housing Services,Homelessness,Housing and Environmental Health ,Transport Related Expenditure,Contract Hire and Operating Leases,Officer lease cars,13/02/2014,118341,"3,315.78",Volkswagen Group Leasing
Central Services to the Public,Management & Support Services,Estates and Economic Development ,Third Party Payments,Other Establishments,Private Contractors,13/02/2014,117990,"1,046.00",Waverley Contract Supply Ltd
Cultural & Related,Open Spaces,Community and Leisure ,Supplies & Services,"Equipment, Furniture & Materials",Purchase Equip + Materials,13/02/2014,118575,"4,359.50",Wellow Parish Council
Cultural & Related,Recreation & Sport,Community and Leisure ,Premises related Expenditure,Energy Costs,Fuel Oil,06/02/2014,117713,"1,018.88",Wessex Petroleum Limited
Central Services to the Public,Management & Support Services,Environmental,Transport Related Expenditure,Direct Transport Costs,Diesel,13/02/2014,116598,"1,088.10",Wessex Petroleum Limited
Central Services to the Public,Management & Support Services,Environmental,Transport Related Expenditure,Direct Transport Costs,Diesel,06/02/2014,116534,"2,567.06",Wessex Petroleum Limited
Central Services to the Public,Management & Support Services,Environmental,Transport Related Expenditure,Direct Transport Costs,Diesel,27/02/2014,118015,"2,724.75",Wessex Petroleum Limited
Central Services to the Public,Management & Support Services,Environmental,Transport Related Expenditure,Direct Transport Costs,Diesel,06/02/2014,116833,"3,584.56",Wessex Petroleum Limited
Central Services to the Public,Management & Support Services,Environmental,Transport Related Expenditure,Direct Transport Costs,Diesel,27/02/2014,118038,"3,814.65",Wessex Petroleum Limited
Central Services to the Public,Management & Support Services,Environmental,Transport Related Expenditure,Direct Transport Costs,Red Derv,27/02/2014,118038,622.8,Wessex Petroleum Limited
Central Services to the Public,Management & Support Services,Environmental,Transport Related Expenditure,Direct Transport Costs,Diesel,06/02/2014,116832,"4,422.15",Wessex Petroleum Limited
Central Services to the Public,Management & Support Services,Environmental,Transport Related Expenditure,Direct Transport Costs,Diesel,06/02/2014,116533,"4,615.06",Wessex Petroleum Limited
Central Services to the Public,Management & Support Services,Environmental,Transport Related Expenditure,Direct Transport Costs,Diesel,27/02/2014,118837,"5,887.62",Wessex Petroleum Limited
Central Services to the Public,Management & Support Services,Environmental,Transport Related Expenditure,Direct Transport Costs,Red Derv,27/02/2014,118837,327.97,Wessex Petroleum Limited
Planning & Development,Community Development,Community and Leisure ,Supplies & Services,Grants & Subscriptions,Grants,05/02/2014,117549,"1,950.00",Weyhill Seniors Club
Environmental & Regulatory,Regulatory Services,Community and Leisure ,Supplies & Services,Services,Coaches Fees,20/02/2014,119193,750,Winton Community Academy
